Cogmind - Beta 15 @@@ ROGUE MODE // 2025.09.24 @ 11:00:20 Player: Ice_Kraken505 Result: Destroyed by YI-UF0 with YI-UF0's Doublenader Performance ------------- Evolutions (1) 500 Regions Visited (3) 600 Robots Destroyed (37) 185 Value Destroyed (694) 694 Prototype IDs (0) 0 Alien Tech Used (0) 0 Bonus (0) 0 TOTAL SCORE: 1979 Bonus ------- None Cogmind --------- Core Integrity 0/400 Matter 290/300 Energy 84/100 System Corruption 11% Temperature Cool (0) Movement Core (50) Location -9/Mines Parts ------- > --- POWER (1) -------- (None) > --- PROPULSION (4) --- (None) > --- UTILITY (2) ------ (None) > --- WEAPON (2) ------- Datajack > --- INVENTORY (5) ---- Heat Sink Peak State ------------ > --- POWER ------------ Improved Ion Engine > --- PROPULSION ------- Aluminum Leg Aluminum Leg Flight Unit > --- UTILITY ---------- Improved Heat Sink Hacking Suite > --- WEAPON ----------- Datajack Plasma Cutter > --- INVENTORY -------- Heat Sink [Rating: 14] Favorites ----------- Power Light Ion Engine Engine Light Ion Engine Propulsion Aluminum Leg Leg Aluminum Leg Wheel Wheel Flight Unit Flight Unit Utility Hacking Suite Device Improved Heat Sink Storage Small Storage Unit Hackware Hacking Suite Weapon Light Assault Rifle Energy Gun Particle Gun Ballistic Gun Light Assault Rifle Launcher Grenade Launcher Special Weapon Plasma Cutter Special Melee Weapon Datajack Build | -11 -10 -9 -9 ------- Run | Yrd Mat Mat Min Slots Evolved 2 | . . 2 . Power . | . . . . Propulsion 2 | . . 2 . Utility . | . . . . Weapon . | . . . . Parts Attached 28 | 6 14 6 2 Power 3 | 1 1 1 . Engine 3 | 1 1 1 . Core . | . . . . Reactor . | . . . . Propulsion 10 | 2 4 3 1 Treads . | . . . . Leg 4 | . 2 2 . Wheel 2 | 2 . . . Hover . | . . . . Flight 4 | . 2 1 1 Utility 7 | 1 6 . . Device 2 | . 2 . . Storage 4 | 1 3 . . Processor . | . . . . Hackware 1 | . 1 . . Protection . | . . . . Artifact . | . . . . Weapon 8 | 2 3 2 1 Energy Gun 3 | 1 1 1 . Energy Cannon . | . . . . Ballistic Gun 2 | 1 1 . . Ballistic Cannon . | . . . . Launcher 1 | . . . 1 Special Weapon 1 | . . 1 . Impact Weapon . | . . . . Slashing Weapon . | . . . . Piercing Weapon . | . . . . Special Melee Weapon 1 | . 1 . . Unidentified Prototypes . | . . . . Corrupted Parts 1 | . . 1 . System Corruption 10 | . . 10 . Parts Lost 20 | . 5 5 10 Power 3 | . 1 1 1 Propulsion 7 | . 1 3 3 Utility 3 | . 1 . 2 Weapon 7 | . 2 1 4 Highest Loss Streak 5 | . 5 5 5 To Critical Strikes . | . . . . Average Backups 3 | 2 4 4 2 Power . | . . . . Propulsion . | . . . . Utility 1 | . 2 1 1 Weapon . | . . . . Tool/Special . | . . . . Unused Backups 6 | . 3 2 1 Power 1 | . . 1 . Propulsion . | . . . . Utility 5 | . 3 1 1 Weapon . | . . . . Tool/Special . | . . . . Average Slot Usage (%) 78 | . 90 70 67 Engine 11 | . 13 9 8 Leg 9 | . 9 3 18 Wheel 5 | . 11 . . Flight 8 | . 4 17 4 Device 7 | . 4 11 9 Storage 5 | . 11 . . Hackware 8 | . 4 11 11 Energy Gun 9 | . 12 9 1 Ballistic Gun 8 | . 14 6 . Special Weapon 2 | . . 1 7 Special Melee Weapon 1 | . . . 3 Peak Build Rating 14 | 6 12 13 14 Average Rating 9 | 5 7 11 11 On Entrance 7 | . 6 12 12 Naked Turns 1 | . . . 1 Heaviest Build 12 | 11 12 11 12 Greatest Support 20 | 20 20 20 20 Greatest Overweight (x) 3 | 3 3 3 1 Average Overweight (x) . | . . . . Largest Inventory Capacity 25 | 8 25 5 5 Average Capacity 6 | 7 7 5 5 Most Carried 8 | 4 8 5 4 Average Carried 3 | 2 4 4 2 Final Capacity 8 | 8 5 5 5 Final Carried 4 | 4 4 4 1 Class Distribution -------------------- 54% | Mutant 45% | Scavenger-Mutant Dominant Class ---------------- Mutant | -10/Materials Scavenger-Mutant | -9/Materials Scavenger-Mutant | -9/Mines Resources | -11 -10 -9 -9 ----------- Run | Yrd Mat Mat Min Matter Collected 737 | 121 498 113 5 Remotely 82 | . 82 . . Salvage Created 1293 | 252 569 438 34 Parts 76 | 13 34 26 3 Haulers Intercepted . | . . . . Recyclers Shooed 2 | . 2 . . Parts Field Recycled . | . . . . Retrieved Matter . | . . . . Parts Self-Destructed . | . . . . Prevented . | . . . . Kills | -11 -10 -9 -9 ------- Run | Yrd Mat Mat Min Combat Hostiles Destroyed 20 | . 10 7 3 Melee 1 | . . . 1 Guns 18 | . 10 6 2 AOE 1 | . . 1 . Classes Destroyed 8 | 3 4 1 . Worker 3 | 2 1 . . Tunneler 5 | 5 . . . Recycler 5 | 1 3 1 . Operator 2 | . 1 1 . Watcher 2 | . 2 . . Swarmer 9 | . 6 . 3 Grunt 9 | . 4 5 . Sentry 2 | . . 2 . Best Kill Streak 9 | 8 8 9 2 Combat Bots Only 6 | . 6 5 2 Max Kills in Single Turn 2 | 1 1 2 1 Gunslinging . | . . . . Exploded 1 | . . 1 . Melee 1 | . . . 1 Uniques/NPCs Destroyed . | . . . . Combat | -11 -10 -9 -9 -------- Run | Yrd Mat Mat Min Hostile Shots Fired 148 | . 57 44 47 Missed 40 | . 7 22 11 Hits 108 | . 50 22 36 Projectile 108 | . 50 22 36 AOE 15 | . . . 15 Critical Strikes 4 | . 1 3 . Part Disruptions 1 | . . 1 . Damage Taken 1612 | . 525 393 694 Core 526 | . 116 90 320 Absorbed by Shields . | . . . . Core Remaining (%) 76 | 100 53 . . Volleys Fired 108 | 21 51 29 7 Largest 2 | 2 2 2 1 Hottest 85 | 60 85 85 65 Shots Fired 196 | 42 97 51 6 Gun 193 | 42 97 51 3 Cannon . | . . . . Launcher . | . . . . Special 3 | . . . 3 Kinetic 94 | 21 51 22 . Thermal 102 | 21 46 29 6 Explosive . | . . . . Electromagnetic . | . . . . Robot Hit Streak 17 | 7 7 17 1 Robot Miss Streak 4 | 3 4 3 2 Penetration Max . | . . . . Secondary Targets 2 | . 2 . . Max Gunslinging Chain 1 | . 1 . . Shots Hit Robots 117 | 27 50 39 1 Core Hits 60 | 9 25 19 7 Critical Kills . | . . . . Critical Parts Destroyed . | . . . . Critical Strikes 1 | . . 1 . Burn 1 | . . 1 . Melee Attacks 7 | . 7 . . Impact . | . . . . Slashing . | . . . . Piercing . | . . . . Sneak Attacks . | . . . . Combat Hostiles . | . . . . Follow-up Attacks . | . . . . Damage Inflicted 1658 | 320 624 659 55 Guns 1451 | 320 624 475 32 Cannons . | . . . . Explosions 184 | . . 184 . Melee . | . . . . Ramming 23 | . . . 23 Kinetic 570 | 167 265 138 . Thermal 881 | 153 359 337 32 Explosive . | . . . . Electromagnetic 184 | . . 184 . Impact . | . . . . Slashing . | . . . . Piercing . | . . . . Highest Corruption 11 | . . 11 11 Average Corruption 8 | . . 2 11 Corruption Purged . | . . . . Corruption Blocked . | . . . . Effects 7 | . . . 7 Message Errors 3 | . . . 3 Heat Flow Errors 1 | . . . 1 Data Loss (minor) 2 | . . . 2 Weapon Failures 1 | . . . 1 Overload Shots . | . . . . Overflow Damage 5 | . . 5 . Projectiles . | . . . . Explosions 5 | . . 5 . Melee . | . . . . Knockbacks . | . . . . Impact . | . . . . Kinetic . | . . . . Secondary . | . . . . Self-Inflicted Damage 68 | . . 68 . Shots 2 | . . 2 . Rammed . | . . . . Targets Rammed 22 | . . . 22 Kicked 22 | . . . 22 Crushed . | . . . . Highest Temperature 208 | . 208 48 171 Average Temperature 52 | . 63 16 92 Received Heat Transfer 375 | . 201 174 . Siege Activations . | . . . . Martial Activations . | . . . . Shielding Activations . | . . . . Robots Disrupted 1 | . . 1 . Combat Hostiles 1 | . . 1 . Robots Corrupted . | . . . . Combat Hostiles . | . . . . Parts Fried . | . . . . Impact Corruptions . | . . . . Robots Melted . | . . . . Combat Hostiles . | . . . . Parts Melted 1 | . . 1 . Heat Transferred 2156 | 350 844 888 74 Parts Sabotaged . | . . . . Parts Stolen . | . . . . Parts Stripped . | . . . . Power Chain Reactions . | . . . . Alert | -11 -10 -9 -9 ------- Run | Yrd Mat Mat Min Maximum Alert Level 1 | . . 1 . Low Security (%) 98 | 100 100 93 100 Level 1 1 | . . 6 . Level 2 . | . . . . Level 3 . | . . . . Level 4 . | . . . . Level 5 . | . . . . High Security . | . . . . Max Security . | . . . . Peak Influence 207 | 10 128 207 94 Initial 64 | . 6 35 64 Average 71 | 2 75 115 56 Influence Increases 731 | 40 319 302 70 Destroy 0b10 Robot/C 400 | . 200 140 60 Destroy 0b10 Robot/NC 85 | 40 35 10 . Destroy Leader 104 | . 54 40 10 Successful Hack 50 | . 30 20 . Disable Machine 75 | . . 75 . Destroy Structure 2 | . . 2 . Lose Combat Pursuer 15 | . . 15 . Influence Decreases 731 | 30 244 220 237 Entered New Map 157 | . 4 50 103 Time Decay 420 | 30 190 120 80 Lost Part 154 | . 50 50 54 Squads Dispatched 4 | . 2 2 . Investigation 2 | . 1 1 . Extermination . | . . . . Reinforcement 2 | . 1 1 . Assault . | . . . . Garrison . | . . . . Intercept . | . . . . Searches Triggered . | . . . . Construction Impeded . | . . . . Haulers Reinforced . | . . . . Active Scanning Responses . | . . . . Cargo Convoy Interrupts . | . . . . Stealth | -11 -10 -9 -9 --------- Run | Yrd Mat Mat Min Distress Signals 4 | . 2 2 . Communications Jammed . | . . . . Distress Signals . | . . . . Times Spotted 36 | . 17 11 8 Peak Tracking Total 7 | . 6 7 3 Tactical Retreats 3 | . . 1 2 Traps | -11 -10 -9 -9 ------- Run | Yrd Mat Mat Min Traps Triggered . | . . . . Indirectly . | . . . . Trap Hack Attempts . | . . . . Triggered . | . . . . Disarmed . | . . . . Reprogrammed . | . . . . Reused . | . . . . Traps Extracted . | . . . . Installed . | . . . . Triggered . | . . . . Machines | -11 -10 -9 -9 ---------- Run | Yrd Mat Mat Min Machines Disabled 5 | . . 5 . Max in Single Turn 2 | . . 2 . Machines Repaired . | . . . . Machines Dismantled 1 | . . 1 . Machines Sabotaged . | . . . . Overloaded Fab Kills . | . . . . Hacking | -11 -10 -9 -9 --------- Run | Yrd Mat Mat Min Machines Accessed 7 | . 4 3 . Terminals 6 | . 3 3 . Fabricators . | . . . . Repair Stations . | . . . . Recycling Units 1 | . 1 . . Scanalyzers . | . . . . Garrison Access . | . . . . Total Hacks 23 | . 11 12 . Successful 16 | . 7 9 . Failed 7 | . 4 3 . Catastrophic 2 | . 1 1 . Database Lockouts . | . . . . Manual 17 | . 7 10 . Terminals 21 | . 9 12 . Fabricators . | . . . . Repair Stations . | . . . . Recycling Units 2 | . 2 . . Scanalyzers . | . . . . Garrison Access . | . . . . Terminal Hacks 9 | . 2 7 . Branch Access Points 1 | . . 1 . Emergency Access Points 1 | . . 1 . Locate Traps 4 | . 2 2 . Hauler Manifests 1 | . . 1 . Zone Layout 2 | . . 2 . Fabricator Hacks . | . . . . Repair Station Hacks . | . . . . Recycling Unit Hacks 2 | . 2 . . Report Inventory 1 | . 1 . . Retrieve Components 1 | . 1 . . Scanalyzer . | . . . . Garrison Access Hacks . | . . . . Unauthorized Hacks 5 | . 3 2 . Terminals 5 | . 3 2 . Track 4 | . 2 2 . Operators 1 | . 1 . . Fabricators . | . . . . Repair Stations . | . . . . Recycling Units . | . . . . Scanalyzers . | . . . . Garrison Access . | . . . . Data Cores Recovered . | . . . . Used . | . . . . Hacking Detections 5 | . 2 3 . Full Trace Events 2 | . 1 1 . Feedback Events . | . . . . Feedback Blocked . | . . . . Robot Schematics Acquired . | . . . . Robots Built . | . . . . Authchips . | . . . . Time . | . . . . Total Robot Build Rating . | . . . . Part Schematics Acquired . | . . . . Parts Built . | . . . . Authchips . | . . . . Time . | . . . . Total Part Build Rating . | . . . . Parts Repaired . | . . . . Time . | . . . . Parts Recycled . | . . . . Recycled Matter . | . . . . Retrieved Matter . | . . . . Retrieved Components 9 | . 9 . . Parts Scanalyzed . | . . . . Part Schematics Acquired . | . . . . Parts Damaged . | . . . . Bothacking | -11 -10 -9 -9 ------------ Run | Yrd Mat Mat Min Used RIF Installer . | . . . . Robots Hacked . | . . . . Non-combat . | . . . . Combat . | . . . . Robot Hacks Applied . | . . . . Relay Couplers Released . | . . . . Fabnet Peak Effective % . | . . . . Robots Rewired . | . . . . Allies Hacked . | . . . . Hacks Repelled . | . . . . Allies | -11 -10 -9 -9 -------- Run | Yrd Mat Mat Min Total Allies . | . . . . Largest Group . | . . . . Highest-Rated Group . | . . . . Highest-Rated Ally . | . . . . Total Orders . | . . . . Ally Attacks . | . . . . Total Damage . | . . . . Kills . | . . . . Allies Corrupted . | . . . . Allies Melted . | . . . . Intel | -11 -10 -9 -9 ------- Run | Yrd Mat Mat Min Active Infowar (turns) . | . . . . Robot Analysis Total . | . . . . Derelict Logs Recovered . | . . . . Drone Launches . | . . . . Drone Recoveries . | . . . . Exploration | -11 -10 -9 -9 ------------- Run | Yrd Mat Mat Min Turns Passed 967 | 133 393 248 193 Spaces Moved 636 | 59 259 193 125 Core 60 | 23 3 12 22 Treads . | . . . . Legs 212 | . 66 43 103 Wheels 131 | 36 95 . . Hover . | . . . . Flight 233 | . 95 138 . Fastest Speed 34 | 50 37 34 50 Average Speed 81 | 92 75 66 109 Slowest Speed 200 | 200 200 200 120 Overloaded Moves . | . . . . Propulsion Burnouts . | . . . . Robots Hopped 1 | . . 1 . Potential Cave-ins . | . . . . Cave-ins Triggered . | . . . . Exploration Rate (%) 26 | 4 50 17 36 Regions Visited 3 Branch Regions 1 Pre-discovered Areas . | . . . . Known Exits Taken 1 | . . 1 . Unknown Exits Taken 2 | 1 1 . . Scrap Searched . | . . . . Spaces Dug . | . . . . Terrain Destroyed . | . . . . Melee . | . . . . Projectile . | . . . . AOE . | . . . . Terrain Rammed . | . . . . Walls Destroyed . | . . . . Machines Disabled . | . . . . Actions | -11 -10 -9 -9 --------- Run | Yrd Mat Mat Min Total 885 | 95 367 257 166 Wait 14 | . 1 9 4 Move 631 | 58 258 190 125 Hop 1 | . . 1 . Pick Up 35 | 10 17 6 2 Fast Attach . | . . . . Attach 29 | 6 14 4 5 Detach 6 | . 6 . . Swap 8 | . 2 5 1 Drop 13 | . 11 2 . Fire 108 | 21 51 29 7 Melee 7 | . 7 . . Ram . | . . . . Kick 22 | . . . 22 Crush . | . . . . Escape Stasis . | . . . . Rewire 7 | . . 7 . Trap . | . . . . Miscellaneous 4 | . . 4 . Route ------- -11/Scrapyard -10/Materials -9/Materials (discovered 2 exits: *Min x2) -9/Mines History --------- Turn | Location | Event 51 | -11/Scrapyard | Discovered new exit (range 15) 134 | -11/Scrapyard | Entered Materials 327 | -10/Materials | Lost 5 parts (1p1n1u2w) 335 | -10/Materials | Build established: Mutant 491 | -10/Materials | Discovered new exit (range 12) 527 | -10/Materials | Entered another Materials area 527 | -9/Materials | Evolved 2 slots: Propulsion x2 541 | -9/Materials | Identified exit to Mines 709 | -9/Materials | Lost 5 parts (1p3n1w) 755 | -9/Materials | System corruption reached 10% 775 | -9/Materials | Entered Mines 870 | -9/Mines | Assembled infested the area 875 | -9/Mines | YI-UF0 nonchalantly dropped a Grenade Launcher on the ground 941 | -9/Mines | Lost 3 parts (1p2n) 946 | -9/Mines | Core integrity fell below 50% 952 | -9/Mines | Core integrity fell below 20% 968 | -9/Mines | Destroyed by YI-UF0 with YI-UF0's Doublenader Last Messages --------------- D-53 Grenadier unfolds itself. K-01 Serf collects debris. System corrupted: Component data lost. K-01 Serf destroyed. Imp. Ion Engine destroyed. Aluminum Leg destroyed. Flight Unit destroyed. The unstable cave ceiling collapses. D-53 Grenadier destroyed. YI-UF0: "Whaaaaaaaa!" The unstable cave ceiling collapses. WUQD0WRB,U% GLFTKL12&DJI%SUFD8M8TC Imp. Heat Sink destroyed. Aluminum Leg destroyed. Grenade Launcher destroyed. The unstable cave ceiling collapses. System corrupted: Heat flow error (+199). YI-UF0 mumbles something. Hacking Suite destroyed. Plasma Cutter destroyed. Map ----- +----------------------------------------------------+ | | | | | | | | | | | | | | | | | | | | | | | | | | | | | | | | | | | | | | | | | | | ?????????????????????????????????????????????????? | | ???????????????????????######????????????????????? | | ???????????????????##### ###??????????###?????? | | ??????????????????## #?????????# ##????? | | ?????????????????## g@ #??????### #????? | | ?????????????????# # ##????## ##???? | | ?????????????????# ## ###### ##??? | | ?????????????????## ###### # #??? | | ??????????????????## #### #??? | | ??#????????????????# #??? | | ?## ???????????????# ##??? | | ?? ###????????????# ###???? | | ??? #????????????## ####?????? | | ??### ###????######## # ##????????? | | ### ##???# #### #?????????? | | # ##??# ##### ###??# #????????? | | ##?# #??## #####???# #???????? | | ### #?## ##???????# #??????? | | ## ## ### ##???????## #??????? | | #### #????????### ##??????? | | ##??# #???????????###???????? | | ##???# ##### # #?????????????????????? | | #????## ###???# ####?????????????????????? | | ??????####?????# #???????????????????????? | | ??????????????# ###???????????????????????? | | ?????????????# #?????????????????????????? | | ????????##### #?????????????????????????? | | ???????## #?????????????????????????? | | ???????# #??????????????????????????? | +----------------------------------------------------+ Best States ------------- Heat Dissipation 42 Energy Generation 12 Energy Capacity 265 Matter Stores 300 Matter Capacity 300 Sight Range 16 Terrain Scan Density 10 Evasion (%) 63 Offensive Hacking 10 Item Schematics ----------------- None Robot Schematics ------------------ None Fabricated ------------ Nothing Repaired ---------- Nothing Alien Tech Used ----------------- None Achievements -------------- None Challenges ------------ None Game ------ Seed MediumEtherialJetlance Manual? 0 Play Time 00:34:32 Cumulative 14.7 hours Start 2025.09.23 @ 10:36:07 End 2025.09.24 @ 11:00:20 Sessions 3 Manual Loads 0 Difficulty Rogue Special Mode None Game No. 15 Rogue 15 Adventurer 0 Explorer 0 Win Type - Total 0 Types 0/0/0/0/0/0/0/0/0/0 Lore% 10 Gallery% 15 Achievement% 17 Wizard Run 0 Options --------- Layout 1 ASCII 0 Keyboard 1 Movement Arrows Keybinds 0 Fullscreen 1 Font 24/Smallcaps Map View 50x35 Zoom Use 0% Tactical HUD 0 Map Filters NONE Filters NONE Steam 1 RUN: 18012ce1-1037-410b-9116-095a66a7f40b